Cogmind - Beta 17 @@@ ROGUE MODE // 2026.08.09 @ 07:52:12 Player: C-Log Result: Destroyed by D-53 Grenadier with Mini Grenade Launcher Performance ------------- Evolutions (0) 0 Regions Visited (2) 400 Robots Destroyed (32) 160 Value Destroyed (399) 399 Prototype IDs (0) 0 Alien Tech Used (0) 0 Bonus (-8) -8 TOTAL SCORE: 951 Bonus ------- Friendly Fire -8 Cogmind --------- Core Integrity 0/250 Matter 285/300 Energy 65/100 System Corruption 0% Temperature Cool (0) Movement Treading (160) Location -10/Mines Parts ------- > --- POWER (1) -------- (None) > --- PROPULSION (2) --- Light Treads Light Treads > --- UTILITY (2) ------ Large Storage Unit > --- WEAPON (2) ------- (None) > --- INVENTORY (15) --- Light Ion Engine Heat Sink High-capacity Storage Unit Weight Redist. System Sensor Array Signal Interpreter Seismic Detector Beam Cannon Light Assault Rifle Light Assault Rifle Grenade Launcher Mining Laser Mining Claw Peak State ------------ > --- POWER ------------ Ion Engine > --- PROPULSION ------- Light Treads Light Treads > --- UTILITY ---------- Small Storage Unit Seismic Detector > --- WEAPON ----------- Beam Cannon Light Assault Rifle > --- INVENTORY -------- Wheel Improved Terrain Scanner Seismic Detector EM Pulse Gun Light Assault Rifle Grenade Launcher Mining Laser Mining Laser [Rating: 8] Favorites ----------- Power Ion Engine Engine Ion Engine Propulsion Light Treads Treads Light Treads Utility Seismic Detector Device Seismic Detector Storage Small Storage Unit Weapon Beam Cannon Energy Cannon Beam Cannon Ballistic Gun Light Assault Rifle Launcher Grenade Launcher Special Weapon Mining Laser Slashing Weapon Mining Claw Build | -11 -10 -10 ------- Run | Yrd Mat Min Slots Evolved . | . . . Power . | . . . Propulsion . | . . . Utility . | . . . Weapon . | . . . Parts Attached 18 | 7 8 3 Power 1 | 1 . . Engine 1 | 1 . . Core . | . . . Reactor . | . . . Propulsion 4 | 2 . 2 Treads 4 | 2 . 2 Leg . | . . . Wheel . | . . . Hover . | . . . Flight . | . . . Utility 3 | 2 1 . Device 1 | 1 . . Storage 2 | 1 1 . Processor . | . . . Hackware . | . . . Protection . | . . . Artifact . | . . . Weapon 10 | 2 7 1 Energy Gun . | . . . Energy Cannon 2 | . 2 . Ballistic Gun 2 | 2 . . Ballistic Cannon . | . . . Launcher 3 | . 2 1 Special Weapon 2 | . 2 . Impact Weapon . | . . . Slashing Weapon 1 | . 1 . Piercing Weapon . | . . . Special Melee Weapon . | . . . Unidentified Prototypes . | . . . Parts Lost 6 | . . 6 Power 1 | . . 1 Propulsion 2 | . . 2 Utility 1 | . . 1 Weapon 2 | . . 2 Highest Loss Streak 6 | . . 6 To Critical Strikes . | . . . Average Backups 8 | 3 9 15 Power . | . . 1 Propulsion 1 | . 1 2 Utility 3 | . 3 6 Weapon 3 | 1 4 6 Tool/Special . | . . . Unused Backups 14 | . 4 10 Power 1 | . . 1 Propulsion 1 | . 1 . Utility 7 | . 1 6 Weapon 5 | . 2 3 Tool/Special . | . . . Average Slot Usage (%) 97 | . 98 91 Engine 13 | . 13 12 Treads 26 | . 26 26 Device 13 | . 14 12 Storage 14 | . 14 14 Energy Cannon 11 | . 11 12 Ballistic Gun 6 | . 7 . Launcher 4 | . 4 12 Special Weapon 1 | . 1 . Slashing Weapon 2 | . 2 . Peak Build Rating 8 | 7 8 8 Average Rating 7 | 6 7 7 On Entrance 5 | . 7 8 Avg Prop Armor Cover (%) . | . . . Naked Turns . | . . . Heaviest Build 32 | 13 32 32 Greatest Support 40 | 40 40 40 Greatest Overweight (x) 2 | . 2 . Average Overweight (x) . | . . . Largest Inventory Capacity 15 | 8 15 15 Average Capacity 10 | 7 10 15 Most Carried 15 | 6 15 15 Average Carried 8 | 3 9 14 Final Capacity 15 | 8 15 15 Final Carried 15 | 6 15 13 Class Distribution -------------------- 100% | Mutant Dominant Class ---------------- Mutant | -10/Materials Mutant | -10/Mines Resources | -11 -10 -10 ----------- Run | Yrd Mat Min Matter Collected 574 | 322 246 6 Remotely . | . . . Salvage Created 804 | 245 529 30 Parts 65 | 21 40 4 Haulers Intercepted 2 | . 2 . Recyclers Shooed 2 | . 2 . Parts Field Recycled . | . . . Retrieved Matter . | . . . Parts Self-Destructed . | . . . Prevented . | . . . Parts Restored . | . . . Kills | -11 -10 -10 ------- Run | Yrd Mat Min Combat Hostiles Destroyed 16 | . 14 2 Guns 6 | . 6 . Cannons 6 | . 4 2 AOE 4 | . 4 . Classes Destroyed 8 | 3 5 . Worker 2 | 1 1 . Builder 1 | . 1 . Tunneler 6 | 6 . . Hauler 2 | . 2 . Recycler 3 | 1 2 . Watcher 2 | . 2 . Swarmer 12 | . 10 2 Grunt 4 | . 4 . Best Kill Streak 4 | 3 4 2 Combat Bots Only 4 | . 4 2 Max Kills in Single Turn 3 | 1 3 1 Gunslinging . | . . . Exploded 3 | . 3 . Melee . | . . . Uniques/NPCs Destroyed . | . . . Combat | -11 -10 -10 -------- Run | Yrd Mat Min Hostile Shots Fired 101 | . 74 27 Missed 25 | . 21 4 Hits 76 | . 53 23 Projectile 76 | . 53 23 AOE 10 | . . 10 Damage Taken 1119 | . 469 650 Core 254 | . 110 144 Absorbed by Shields . | . . . Regen/Repaired (Parts) 224 | . 224 . Core Remaining (%) 100 | 100 . . Volleys Fired 99 | 26 62 11 Largest 2 | 2 2 2 Hottest 120 | 40 120 90 Shots Fired 159 | 52 95 12 Gun 98 | 52 46 . Cannon 47 | . 36 11 Launcher 4 | . 3 1 Special 10 | . 10 . Kinetic 98 | 52 46 . Thermal 57 | . 46 11 Explosive 4 | . 3 1 Electromagnetic . | . . . Robot Hit Streak 11 | 11 8 5 Robot Miss Streak 4 | 3 4 2 Penetration Max . | . . . Secondary Targets . | . . . Shots Hit Robots 99 | 35 58 6 Core Hits 46 | 15 28 3 Critical Kills 3 | 1 2 . Critical Parts Destroyed . | . . . Critical Strikes 3 | 1 2 . Meltdown 1 | . 1 . Destroy 2 | 1 1 . Melee Attacks 11 | . 11 . Impact . | . . . Slashing 11 | . 11 . Piercing . | . . . Sneak Attacks 1 | . 1 . Combat Hostiles . | . . . Follow-up Attacks . | . . . Damage Inflicted 1420 | 275 1033 112 Guns 504 | 275 229 . Cannons 542 | . 438 104 Explosions 279 | . 271 8 Melee 95 | . 95 . Ramming . | . . . Kinetic 504 | 275 229 . Thermal 542 | . 438 104 Explosive 279 | . 271 8 Electromagnetic . | . . . Impact . | . . . Slashing 95 | . 95 . Piercing . | . . . Highest Corruption . | . . . Average Corruption . | . . . Corruption Purged . | . . . Corruption Blocked . | . . . Overload Shots . | . . . Overflow Damage 38 | . 38 . Projectiles . | . . . Explosions 30 | . 30 . Melee 8 | . 8 . Knockbacks . | . . . Impact . | . . . Kinetic . | . . . Secondary . | . . . Self-Inflicted Damage 40 | . 11 29 Shots 2 | . 1 1 Rammed . | . . . Targets Rammed . | . . . Kicked . | . . . Crushed . | . . . Highest Temperature 258 | . 258 160 Average Temperature 71 | . 72 65 Received Heat Transfer 78 | . 78 . Siege Activations . | . . . Martial Activations . | . . . Shielding Activations . | . . . Robots Disrupted . | . . . Combat Hostiles . | . . . Robots Corrupted . | . . . Combat Hostiles . | . . . Parts Fried . | . . . Impact Corruptions . | . . . Robots Melted 1 | . 1 . Combat Hostiles . | . . . Parts Melted 3 | . 3 . Heat Transferred 1147 | . 925 222 Parts Sabotaged . | . . . Parts Stolen . | . . . Parts Stripped . | . . . Power Chain Reactions . | . . . Alert | -11 -10 -10 ------- Run | Yrd Mat Min Maximum Alert Level 1 | . 1 . Low Security (%) 76 | 100 70 100 Level 1 23 | . 29 . Level 2 . | . . . Level 3 . | . . . Level 4 . | . . . Level 5 . | . . . High Security . | . . . Max Security . | . . . Peak Influence 243 | 10 243 104 Initial 56 | . . 56 Average 123 | 2 150 83 Influence Increases 656 | 40 568 48 Destroy 0b10 Robot/C 320 | . 280 40 Destroy 0b10 Robot/NC 80 | 40 40 . Destroy Leader 78 | . 78 . Successful Hack 24 | . 24 . Select Force Hacks 30 | . 30 . Disable Machine 60 | . 60 . Destroy Structure 34 | . 26 8 Lose Combat Pursuer 30 | . 30 . Influence Decreases 656 | 40 423 193 Entered New Map 89 | . . 89 Time Decay 493 | 40 423 30 Lost Part 54 | . . 54 Lost Ally 20 | . . 20 Squads Dispatched 3 | . 3 . Investigation 3 | . 3 . Extermination . | . . . Reinforcement . | . . . Assault . | . . . Garrison . | . . . Intercept . | . . . Searches Triggered . | . . . Construction Impeded . | . . . Haulers Reinforced . | . . . Active Scanning Responses . | . . . Cargo Convoy Interrupts . | . . . Stealth | -11 -10 -10 --------- Run | Yrd Mat Min Distress Signals 1 | . 1 . Communications Jammed . | . . . Distress Signals . | . . . Times Spotted 34 | . 24 10 Peak Tracking Total 7 | . 4 7 Tactical Retreats 2 | . 1 1 Traps | -11 -10 -10 ------- Run | Yrd Mat Min Traps Triggered 3 | . 3 . Indirectly . | . . . Trap Hack Attempts . | . . . Triggered . | . . . Disarmed . | . . . Reprogrammed . | . . . Reused . | . . . Traps Extracted . | . . . Installed . | . . . Triggered . | . . . Machines | -11 -10 -10 ---------- Run | Yrd Mat Min Machines Disabled 4 | . 4 . Max in Single Turn 2 | . 2 . Machines Repaired . | . . . Machines Dismantled . | . . . Machines Sabotaged . | . . . Overloaded Fab Kills . | . . . Hacking | -11 -10 -10 --------- Run | Yrd Mat Min Machines Accessed 9 | . 9 . Terminals 6 | . 6 . Fabricators . | . . . Repair Stations 1 | . 1 . Recycling Units 2 | . 2 . Scanalyzers . | . . . Garrison Access . | . . . Total Hacks 30 | . 30 . Successful 17 | . 17 . Failed 13 | . 13 . Catastrophic 2 | . 2 . Database Lockouts . | . . . Manual 14 | . 14 . Terminals 18 | . 18 . Fabricators . | . . . Repair Stations 8 | . 8 . Recycling Units 4 | . 4 . Scanalyzers . | . . . Garrison Access . | . . . Terminal Hacks 5 | . 5 . Branch Access Points 1 | . 1 . Dispatch Records 1 | . 1 . Reinforcement Status 1 | . 1 . Assault Status 1 | . 1 . Zone Layout 1 | . 1 . Fabricator Hacks . | . . . Repair Station Hacks 7 | . 7 . Scan Component 4 | . 4 . Repair 3 | . 3 . Recycling Unit Hacks 2 | . 2 . Retrieve Components 2 | . 2 . Scanalyzer . | . . . Garrison Access Hacks . | . . . Unauthorized Hacks 3 | . 3 . Terminals 2 | . 2 . Botnet 2 | . 2 . Fabricators . | . . . Repair Stations . | . . . Recycling Units 1 | . 1 . Tunnel 1 | . 1 . Scanalyzers . | . . . Garrison Access . | . . . Data Cores Recovered . | . . . Used . | . . . Hacking Detections 7 | . 7 . Full Trace Events 1 | . 1 . Feedback Events . | . . . Feedback Blocked . | . . . Robot Schematics Acquired . | . . . Robots Built . | . . . Authchips . | . . . Time . | . . . Total Robot Build Rating . | . . . Part Schematics Acquired . | . . . Parts Built . | . . . Authchips . | . . . Time . | . . . Total Part Build Rating . | . . . Part Studies Acquired . | . . . Parts Repaired 3 | . 3 . Time 78 | . 78 . Parts Recycled . | . . . Recycled Matter . | . . . Retrieved Matter . | . . . Retrieved Components 10 | . 10 . Parts Scanalyzed . | . . . Part Schematics Acquired . | . . . Parts Damaged . | . . . Bothacking | -11 -10 -10 ------------ Run | Yrd Mat Min Used RIF Installer . | . . . Robots Hacked . | . . . Non-combat . | . . . Combat . | . . . Robot Hacks Applied . | . . . Relay Couplers Released . | . . . Fabnet Peak Effective % . | . . . Robots Rewired . | . . . Allies Hacked . | . . . Hacks Repelled . | . . . Allies | -11 -10 -10 -------- Run | Yrd Mat Min Total Allies 1 | . . 1 Largest Group 1 | . . 1 Highest-Rated Group 31 | . . 31 Highest-Rated Ally 31 | . . 31 Total Orders . | . . . Ally Attacks 1 | . . 1 Total Damage 22 | . . 22 Kills . | . . . Allies Corrupted . | . . . Allies Melted . | . . . Intel | -11 -10 -10 ------- Run | Yrd Mat Min Active Infowar (turns) 1410 | 140 1206 64 Seismic 1410 | 140 1206 64 Robot Analysis Total . | . . . Derelict Logs Recovered . | . . . Drone Launches . | . . . Drone Recoveries . | . . . Exploration | -11 -10 -10 ------------- Run | Yrd Mat Min Turns Passed 1529 | 252 1212 65 Spaces Moved 690 | 107 559 24 Core 3 | 2 1 . Treads 687 | 105 558 24 Legs . | . . . Wheels . | . . . Hover . | . . . Flight . | . . . Fastest Speed 50 | 50 150 160 Average Speed 159 | 157 159 160 Slowest Speed 160 | 160 160 160 Overloaded Moves . | . . . Propulsion Burnouts . | . . . Robots Hopped . | . . . Potential Cave-ins . | . . . Cave-ins Triggered . | . . . Exploration Rate (%) 35 | 4 91 11 Regions Visited 2 Branch Regions 1 Pre-discovered Areas 2 | . 1 1 Known Exits Taken 1 | . 1 . Unknown Exits Taken 1 | 1 . . Scrap Searched . | . . . Spaces Dug 13 | . 13 . Terrain Destroyed 33 | . 25 8 Melee 4 | . 4 . Projectile 9 | . 9 . AOE 20 | . 12 8 Terrain Rammed . | . . . Walls Destroyed . | . . . Machines Disabled . | . . . Actions | -11 -10 -10 --------- Run | Yrd Mat Min Total 934 | 146 748 40 Wait 72 | . 72 . Move 688 | 106 558 24 Hop . | . . . Pick Up 25 | 7 17 1 Fast Attach 14 | 6 8 . Attach 3 | 1 . 2 Detach . | . . . Swap 10 | . 9 1 Drop 12 | . 11 1 Fire 99 | 26 62 11 Melee 11 | . 11 . Ram . | . . . Kick . | . . . Crush . | . . . Escape Stasis . | . . . Rewire . | . . . Trap . | . . . Miscellaneous . | . . . Route ------- -11/Scrapyard -10/Materials (discovered 5 exits: [*Mat x3] / *Min x2) -10/Mines History --------- Turn | Location | Event 7 | -11/Scrapyard | Discovered new exit (range 15) 253 | -11/Scrapyard | Entered Materials 308 | -10/Materials | Build established: Mutant 442 | -10/Materials | Discovered new exit (range 9) 502 | -10/Materials | Discovered new exit (range 10) 509 | -10/Materials | Identified exit to Mines 736 | -10/Materials | Repaired Ion Engine 768 | -10/Materials | Repaired Lgt. Treads 800 | -10/Materials | Repaired Lgt. Treads 823 | -10/Materials | Discovered new exit (range 12) 1062 | -10/Materials | Discovered new exit (range 14) 1465 | -10/Materials | Entered Mines 1467 | -10/Mines | Core integrity fell below 50% 1471 | -10/Mines | Assembled infested the area 1476 | -10/Mines | Escorted by a lone wolf Derelict 1496 | -10/Mines | Learned location of Storage (-7) 1529 | -10/Mines | Core integrity fell below 20% 1530 | -10/Mines | Destroyed by D-53 Grenadier with Mini Grenade Launcher Last Messages --------------- Dropped Lgt. Assault Rifle. Acquired Lgt. Assault Rifle. NW-LOG(g): "While you're wandering around here, I suggest you avoid Complex 0b10 Storage. Security there is tighter since Warlord's second failed attempt to raid it." World map updated: -7/Storage. C-45 Heavy ARC bursts open, deploying its payload. D-53 Grenadier unfolds itself. NW-LOG(g): "Mission, incomplete...*fzzt*" NW-LOG(g) destroyed. Grenade Launcher destroyed. as-42227 destroyed. Beam Cannon destroyed. Ion Engine destroyed. Lgt. Treads destroyed. The unstable cave ceiling collapses. Seismic Detector destroyed. The unstable cave ceiling collapses. Map ----- +----------------------------------------------------+ | ?????????????????????????????????????????? | | ?????????????????????????????????????????? | | ?????????????????????????????????????????? | | ?????????????????????????????????????????? | | ?????????????????????????????????????????? | | ?????????????????????????????????????????? | | ?????????????????????????????????????????? | | ?????????????????????????????????????????? | | ?????????????????????????????????????????? | | ?????????????????????????????????????????? | | ?????????????????????????????????????????? | | ?????????????????????????????????????????? | | ??????????????????????###????????????????? | | ??????????????????????# ????????????????? | | ???????????????####???# #????????????????? | | ??????????????## ##??# #????????????????? | | ?????????????## #??# #????????????????? | | ????????????## % #??#a###????#?????????? | | ???????????## [* #### # ###? #?????????? | | ???????????# ## #aa#?????????? | | ???????????### =[ # # #?????????? | | ?????????????# [ # #?????????? | | ?????????????## = # # #?????????? | | ??????????????# dd a #?????????? | | ???????# ## #?????????? | | ???????# ########## @ ##?????????? | | ??????????????????# ## # #??????????? | | ?????????????????# # ##??????????? | | ????????????????# # ??????????? | | ????????????????# | #????????? | | ???????????????# ######????????? | | ?????????????? ? ] #?????????????? | | ????????????? ? ## !#?????????????? | | ??????????????#? ! #?##! ##?????????????? | | ???????????????# #???####??????????????? | | ???????????????####??????????????????????? | | ?????????????????????????????????????????? | | ?????????????????????????????????????????? | | | | | | | | | | | | | | | | | | | | | | | | | +----------------------------------------------------+ Best States ------------- Heat Dissipation 25 Energy Generation 10 Energy Capacity 250 Matter Stores 300 Matter Capacity 300 Sight Range 16 Terrain Scan Density 10 Evasion (%) 40 Recoil Reduction 2 Item Schematics ----------------- None Robot Schematics ------------------ None Fabricated ------------ Nothing Repaired ---------- Ion Engine | 8% | -10/Materials Lgt. Treads | 35% | -10/Materials Lgt. Treads | 44% | -10/Materials Studied --------- None Alien Tech Used ----------------- None Achievements -------------- Brute Force True Hacker Challenges ------------ None Game ------ Seed BurstAntimissileClaymores Manual? 0 Play Time 00:19:50 Cumulative 16.4 hours Start 2026.08.09 @ 07:33:28 End 2026.08.09 @ 07:52:12 Sessions 1 Manual Loads 0 Difficulty Rogue Special Mode None Game No. 11 Rogue 7 Adventurer 4 Explorer 0 Win Type - Total 0 Types 0/0/0/0/0/0/0/0/0/0 Lore% 22 Gallery% 16 Achievement% 18 Wizard Run 0 Options --------- Layout 1 ASCII 0 Keyboard 0 Movement Mouse Keybinds 0 Fullscreen 1 Font 32/SmallcapsGlow Map View 50x35 Zoom Use 0% Tactical HUD 0 Map Filters NONE Filters NONE Steam 1 RUN: fd36be7c-d6a5-4b40-af81-ba44a7bb8976